fUST/lending_fUST_20250624
["ID","MTS","AMOUNT","RATE_DAILY","PERIOD"]
[367289019,1750731042477,-734.92,0.00019537,2]
[367289020,1750731042486,-471.24,0.00019537,2]
[367289021,1750731042495,-460.0,0.00019537,2]
[367289022,1750731042505,-764.27,0.00019537,2]
[367289023,1750731042514,-701.19,0.00019537,2]
[367289024,1750731042524,-800.38,0.00019537,2]
[367289025,1750731042533,-460.0,0.00019537,2]
[367289026,1750731042542,-460.0,0.00019537,2]
[367289027,1750731042552,-460.0,0.00019537,2]
[367289028,1750731042561,-905.22,0.00019537,2]
[367289029,1750731042571,-696.18,0.00019537,2]
[367289030,1750731042581,-2395.4,0.00019537,2]
[367289031,1750731042590,-460.0,0.00019537,2]
[367289032,1750731042599,-789.05,0.00019537,2]
[367289033,1750731042608,-1119.69,0.00019537,2]
[367289034,1750731042617,-318.74679534,0.00019537,2]
[367289035,1750731042626,-460.0,0.00019537,2]
[367289036,1750731042636,-460.0,0.00019537,2]
[367289037,1750731042645,-596.74297341,0.00019537,2]
[367289038,1750731042654,-460.0,0.00019537,2]
[367289039,1750731042663,-486.25,0.00019538,2]
[367289040,1750731042672,-470.59504887,0.00019538,2]
[367289041,1750731042681,-493.35,0.00019538,2]
[367289042,1750731042691,-469.87338448,0.00019538,2]
[367289043,1750731042700,-460.0,0.00019538,2]
[367289044,1750731042709,-467.00975208,0.00019538,2]
[367289045,1750731042718,-511.77,0.00019538,2]
[367289046,1750731042727,-317.0281153,0.00019538,2]
[367289047,1750731042736,-460.0,0.00019538,2]
[367289048,1750731042746,-392.2592204,0.00019538,2]
[367289049,1750731042755,-429.27375368,0.00019538,2]
[367289050,1750731042764,-467.85743916,0.00019538,2]
[367289051,1750731042774,-596.49859472,0.00019538,2]
[367289052,1750731042783,-460.0,0.00019538,2]
[367289053,1750731042792,-508.98148759,0.00019538,2]
[367289054,1750731042801,-483.58740342,0.00019538,2]
[367289055,1750731042811,-460.0,0.00019538,2]
[367289056,1750731042821,-321.01943641,0.00019538,2]
[367289057,1750731042830,-581.18242448,0.00019538,2]
[367289058,1750731042839,-460.0,0.00019538,2]
[367289059,1750731042848,-460.0,0.00019538,2]
[367289060,1750731042861,-460.0,0.00019538,2]
[367289061,1750731042870,-442.84783583,0.00019538,2]
[367289062,1750731042879,-460.0,0.00019538,2]
[367289063,1750731042888,-460.0,0.00019538,2]
[367289064,1750731042899,-312.98234145,0.00019538,2]
[367289065,1750731042908,-460.0,0.00019538,2]
[367289066,1750731042916,-460.0,0.00019538,2]
[367289067,1750731042925,-419.19801869,0.00019538,2]
[367289068,1750731042935,-460.0,0.00019538,2]
[367289069,1750731042944,-431.35954067,0.00019538,2]
[367289070,1750731042953,-669.51,0.00019538,2]
[367289071,1750731042962,-460.0,0.00019538,2]
[367289072,1750731042970,-595.42153144,0.00019538,2]
[367289073,1750731042979,-460.0,0.00019538,2]
[367289074,1750731042988,-255.72228062,0.00019538,2]
[367289075,1750731042996,-593.93,0.00019538,2]
[367289076,1750731043005,-460.0,0.00019538,2]
[367289077,1750731043014,-389.89493157,0.00019538,2]
[367289078,1750731043023,-460.0,0.00019538,2]
[367289079,1750731043031,-460.0,0.00019538,2]
[367289080,1750731043040,-460.0,0.00019538,2]
[367289081,1750731043050,-705.73,0.00019538,2]
[367289082,1750731043060,-460.0,0.00019538,2]
[367289083,1750731043069,-460.0,0.00019538,2]
[367289084,1750731043079,-468.11680422,0.00019538,2]
[367289085,1750731043088,-467.06576305,0.00019538,2]
[367289086,1750731043097,-460.0,0.00019538,2]
[367289087,1750731043106,-460.0,0.00019538,2]
[367289088,1750731043116,-460.0,0.00019538,2]
[367289089,1750731043125,-460.0,0.00019538,2]
[367289091,1750731043134,-460.0,0.00019538,2]
[367289093,1750731043143,-460.0,0.00019538,2]
[367289094,1750731043152,-460.0,0.00019538,2]
[367289096,1750731043162,-467.55003261,0.00019538,2]
[367289098,1750731043171,-460.0,0.00019538,2]
[367289100,1750731043181,-460.0,0.00019538,2]
[367289101,1750731043191,-151.0,0.00019538,2]
[367289102,1750731043200,-460.0,0.00019538,2]
[367289103,1750731043210,-151.0,0.00019538,2]
[367289104,1750731043220,-1212.39,0.00019538,2]
[367289105,1750731043229,-151.0,0.00019538,2]
[367289106,1750731043238,-151.0,0.00019538,2]
[367289107,1750731043248,-151.0,0.00019538,2]
[367289108,1750731043258,-460.0,0.00019538,2]
[367289109,1750731043267,-151.0,0.00019538,2]
[367289110,1750731043276,-187.30181,0.00019538,2]
[367289111,1750731043286,-151.0,0.00019538,2]
[367289112,1750731043295,-151.0,0.00019538,2]
[367289113,1750731043304,-151.0,0.00019538,2]
[367289114,1750731043314,-151.0,0.00019538,2]
[367289115,1750731043324,-460.0,0.00019538,2]
[367289116,1750731043333,-152.4872318,0.00019539,2]
[367289117,1750731043344,-460.0,0.00019539,2]
[367289118,1750731043354,-460.0,0.00019539,2]
[367289119,1750731043362,-2428.54,0.00019539,2]
[367289120,1750731043372,-785.39,0.00019539,2]
[367289121,1750731043381,-460.0,0.00019539,2]
[367289122,1750731043390,-460.0,0.00019539,2]
[367289123,1750731043399,-151.0,0.00019539,2]
[367289124,1750731043409,-282.229521,0.00019539,2]
[367289125,1750731043419,-2214.76,0.00019539,2]
[367289126,1750731043428,-428.97843573,0.00019539,2]
[367289127,1750731043439,-1359.49,0.00019539,2]
[367289128,1750731043448,-3474.07,0.00019539,2]
[367289129,1750731043458,-460.0,0.00019539,2]
[367289130,1750731043467,-948.16,0.00019539,2]
[367289131,1750731043476,-493.02,0.00019539,2]
[367289132,1750731043485,-460.0,0.00019539,2]
[367289133,1750731043494,-460.0,0.00019539,2]
[367289134,1750731043503,-460.0,0.00019546,2]
[367289135,1750731043513,-465.1946172,0.00019546,2]
[367289136,1750731043522,-460.0,0.00019546,2]
[367289137,1750731043531,-460.0,0.00019546,2]
[367289138,1750731043540,-460.0,0.00019546,2]
[367289139,1750731043549,-460.0,0.00019546,2]
[367289140,1750731043559,-460.0,0.00019546,2]
[367289141,1750731043569,-460.0,0.00019546,2]
[367289142,1750731043578,-468.32196164,0.00019546,2]
[367289143,1750731043588,-460.0,0.00019546,2]
[367289144,1750731043597,-596.41917785,0.00019546,2]
[367289145,1750731043606,-403.75503242,0.00019546,2]
[367289146,1750731043616,-460.0,0.00019546,2]
[367289147,1750731043625,-465.14290261,0.00019546,2]
[367289148,1750731043634,-460.0,0.00019546,2]
[367289149,1750731043644,-1443.63169674,0.00019566,2]
[367289150,1750731043654,-159.1393301,0.000196,2]
[367289151,1750731043664,-574.7458077,0.000196,2]
[367289152,1750731043675,-177.3437282,0.000196,2]
[367289153,1750731043684,-574.7458077,0.000196,2]
[367289154,1750731043693,-318.2786602,0.000196,2]
[367289155,1750731043703,-153.0,0.000196,2]
[367289156,1750731043713,-923.1942241,0.000196,2]
[367289157,1750731043722,-153.0,0.000196,2]
[367289158,1750731043731,-177.3437282,0.000196,2]
[367289160,1750731043740,-177.3437282,0.000196,2]
[367289162,1750731043751,-159.1393301,0.000196,2]
[367289163,1750731043760,-177.3437282,0.000196,2]
[367289164,1750731043769,-153.0,0.000196,2]
[367289165,1750731043778,-159.1393301,0.000196,2]
[367289166,1750731043788,-574.7458078,0.000196,2]
[367289167,1750731043798,-177.3437282,0.000196,2]
[367289168,1750731043808,-159.1393301,0.000196,2]
[367289170,1750731043817,-177.3437282,0.000196,2]
[367289171,1750731043826,-574.7458077,0.000196,2]
[367289173,1750731043835,-153.0,0.000196,2]
[367289174,1750731043844,-418.60375549,0.00019669,2]
[367289175,1750731043853,-351.0,0.00019737,2]
[367289176,1750731043866,-905.53178356,0.0001978,2]
[367289177,1750731043875,-270.09,0.00019799,2]
[367289178,1750731043884,-1000.0,0.000198,2]
[367289179,1750731043894,-153.0,0.000198,2]
[367289180,1750731043903,-177.3437282,0.000198,2]
[367289181,1750731043914,-177.3437282,0.000198,2]
[367289182,1750731043924,-177.3437282,0.000198,2]
[367289183,1750731043934,-177.3437282,0.000198,2]
[367289184,1750731043945,-356.9917231,0.000198,2]
[367289185,1750731043954,-464.62217338,0.000198,2]
[367289186,1750731043964,-495.22403737,0.000198,2]
[367289187,1750731043972,-153.0,0.000198,2]
[367289188,1750731043982,-460.0,0.000198,2]
[367289189,1750731043991,-152.48349207,0.000198,2]
[367289190,1750731044000,-811.09,0.000198,2]
[367289191,1750731044010,-460.0,0.000198,2]
[367289192,1750731044019,-1659.52,0.000198,2]
[367289193,1750731044028,-1725.52,0.000198,2]
[367289194,1750731044037,-3144.24,0.000198,2]
[367289195,1750731044047,-460.0,0.000198,2]
[367289197,1750731044056,-1711.24,0.000198,2]
[367289199,1750731044065,-417.4223952,0.000198,2]
[367289200,1750731044075,-1262.91,0.000198,2]
[367289202,1750731044084,-460.0,0.000198,2]
[367289204,1750731044093,-577.85,0.000198,2]
[367289205,1750731044200,-367.26,0.000198,2]
[367289206,1750731044210,-870.34,0.000198,2]
[367289207,1750731044220,-740.0,0.000198,2]
[367289208,1750731044230,-2417.13,0.000198,2]
[367289209,1750731044240,-567.91,0.000198,2]
[367289210,1750731044250,-460.0,0.000198,2]
[367289211,1750731044258,-460.0,0.000198,2]
[367289212,1750731044268,-1856.77,0.000198,2]
[367289213,1750731044277,-275.294019,0.000198,2]
[367289214,1750731044286,-5000.0,0.000198,2]
[367289215,1750731044295,-460.0,0.0001981,2]
[367289216,1750731044305,-468.63825083,0.0001981,2]
[367289217,1750731044314,-460.0,0.0001981,2]
[367289218,1750731044323,-152.206113,0.0001981,2]
[367289219,1750731044333,-153.025493,0.0001981,2]
[367289220,1750731044342,-460.0,0.0001981,2]
[367289221,1750731044351,-450.71542155,0.0001981,2]
[367289222,1750731044361,-451.20566503,0.0001981,2]
[367289223,1750731044370,-460.0,0.0001981,2]
[367289224,1750731044379,-477.71060093,0.0001981,2]
[367289225,1750731044388,-609.62,0.0001981,2]
[367289226,1750731044398,-361.545238,0.0001981,2]
[367289227,1750731044407,-361.545238,0.0001981,2]
[367289228,1750731044417,-460.0,0.0001981,2]
[367289229,1750731044426,-460.0,0.0001981,2]
[367289230,1750731044435,-460.0,0.0001981,2]
[367289231,1750731044444,-469.25,0.0001981,2]
[367289232,1750731044454,-151.0,0.0001981,2]
[367289233,1750731044463,-460.0,0.0001981,2]
[367289234,1750731044472,-737.39,0.0001981,2]
[367289235,1750731044481,-460.0,0.0001981,2]
[367289236,1750731044490,-460.0,0.0001981,2]
[367289237,1750731044500,-204.10924295,0.0001981,2]
[367289238,1750731044509,-460.0,0.00019811,2]
[367289239,1750731044518,-460.0,0.00019811,2]
[367289240,1750731044527,-460.0,0.00019811,2]
[367289241,1750731044536,-577.76125275,0.00019811,2]
[367289242,1750731044546,-516.38429217,0.00019811,2]
[367289243,1750731044555,-460.0,0.00019811,2]
[367289244,1750731044565,-460.0,0.00019811,2]
[367289245,1750731044574,-259.39,0.00019811,2]
[367289246,1750731044583,-460.0,0.00019811,2]
[367289247,1750731044592,-151.0,0.00019811,2]
[367289248,1750731044602,-236.37,0.00019811,2]
[367289249,1750731044611,-151.0,0.00019811,2]
[367289250,1750731044620,-460.0,0.00019811,2]
[367289251,1750731044630,-567.71,0.00019811,2]
[367289252,1750731044639,-474.36753628,0.00019811,2]
[367289253,1750731044648,-460.0,0.00019811,2]
[367289254,1750731044658,-269.094194,0.00019811,2]
[367289255,1750731044668,-269.094194,0.00019811,2]
[367289256,1750731044679,-460.0,0.00019811,2]
[367289257,1750731044689,-460.0,0.00019811,2]
[367289258,1750731044699,-151.837906,0.00019811,2]
[367289259,1750731044708,-460.0,0.00019811,2]
[367289260,1750731044717,-856.09,0.00019811,2]
[367289261,1750731044727,-460.0,0.00019811,2]
[367289262,1750731044736,-460.0,0.00019811,2]
[367289263,1750731044745,-2946.906804,0.00019811,2]
[367289264,1750731044754,-1081.001993,0.00019811,2]
[367289265,1750731044763,-761.01,0.00019811,2]
[367289266,1750731044778,-2946.906804,0.00019811,2]
[367289267,1750731044787,-498.82185237,0.00019811,2]
[367289268,1750731044797,-1081.001993,0.00019811,2]
[367289269,1750731044806,-460.0,0.00019811,2]
[367289270,1750731044815,-460.0,0.00019811,2]
[367289271,1750731044823,-460.0,0.00019811,2]
[367289272,1750731044833,-564.93180936,0.00019811,2]
[367289273,1750731044842,-609.59,0.00019811,2]
[367289274,1750731044852,-460.0,0.00019811,2]
[367289275,1750731044863,-625.92,0.00019811,2]
[367289276,1750731044872,-320.751098,0.00019811,2]
[367289277,1750731044882,-460.0,0.00019811,2]
[367289278,1750731044891,-320.751098,0.00019811,2]
[367289279,1750731044901,-156.865194,0.00019811,2]
[367289280,1750731044911,-460.0,0.00019811,2]
[367289281,1750731044919,-460.0,0.00019811,2]
[367289282,1750731044928,-156.865194,0.00019811,2]
[367289283,1750731044939,-460.0,0.00019811,2]
[367289284,1750731044948,-1111.11,0.00019811,2]
[367289285,1750731044957,-460.0,0.00019811,2]
[367289286,1750731044966,-696.5,0.00019811,2]
[367289287,1750731044981,-5291.82,0.00019811,2]
[367289288,1750731044990,-734.92,0.00019811,2]
[367289289,1750731044999,-151.0,0.00019811,2]
[367289290,1750731045010,-471.24,0.00019811,2]
[367289291,1750731045019,-151.0,0.00019811,2]
[367289292,1750731045028,-764.27,0.00019811,2]
[367289293,1750731045037,-701.19,0.00019811,2]
[367289294,1750731045046,-151.0,0.00019811,2]
[367289295,1750731045055,-151.0,0.00019811,2]
[367289296,1750731045065,-800.38,0.00019811,2]
[367289297,1750731045074,-151.0,0.00019811,2]
[367289298,1750731045084,-460.0,0.00019811,2]
[367289299,1750731045093,-460.0,0.00019811,2]
[367289300,1750731045102,-460.0,0.00019811,2]
[367289301,1750731045112,-905.22,0.00019811,2]
[367289302,1750731045121,-1674.652596,0.00019811,2]
[367289303,1750731045130,-151.0,0.00019811,2]
[367289304,1750731045140,-1674.652596,0.00019811,2]
[367289305,1750731045149,-696.18,0.00019811,2]
[367289306,1750731045159,-2395.4,0.00019811,2]
[367289307,1750731045168,-460.0,0.00019811,2]
[367289308,1750731045177,-789.05,0.00019811,2]
[367289309,1750731045188,-1119.69,0.00019811,2]
[367289310,1750731045197,-460.0,0.00019811,2]
[367289311,1750731045207,-151.0,0.00019811,2]
[367289312,1750731045216,-151.0,0.00019811,2]
[367289313,1750731045225,-151.0,0.00019811,2]
[367289314,1750731045234,-151.0,0.00019811,2]
[367289315,1750731045243,-460.0,0.00019811,2]
[367289316,1750731045253,-460.0,0.00019811,2]
[367289317,1750731045262,-460.0,0.00019812,2]
[367289318,1750731045272,-511.77,0.00019812,2]
[367289319,1750731045280,-460.0,0.00019812,2]
[367289320,1750731045290,-222.62036427,0.00019812,2]
[367289321,1750731045299,-173.17852364,0.00019812,2]
[367289322,1750731045308,-553.8895204,0.00019812,2]
[367289323,1750731045317,-460.0,0.00019812,2]
[367289324,1750731045326,-153.96031235,0.00019812,2]
[367289325,1750731045335,-460.0,0.00019812,2]
[367289326,1750731045344,-460.0,0.00019812,2]
[367289327,1750731045353,-460.0,0.00019812,2]
[367289328,1750731045362,-460.0,0.00019812,2]
[367289329,1750731045371,-194.68711704,0.00019812,2]
[367289330,1750731045382,-669.51,0.00019812,2]
[367289331,1750731045391,-460.0,0.00019812,2]
[367289332,1750731045400,-460.0,0.00019812,2]
[367289333,1750731045410,-593.93,0.00019812,2]
[367289334,1750731045419,-460.0,0.00019812,2]
[367289335,1750731045428,-151.0,0.00019812,2]
[367289336,1750731045438,-460.0,0.00019812,2]
[367289337,1750731045448,-151.0,0.00019812,2]
[367289338,1750731045457,-151.0,0.00019812,2]
[367289339,1750731045466,-151.0,0.00019812,2]
[367289340,1750731045476,-416.12885878,0.00019812,2]
[367289341,1750731045485,-153.521181,0.00019812,2]
[367289342,1750731045494,-417.35833624,0.00019812,2]
[367289343,1750731045503,-705.73,0.00019812,2]
[367289344,1750731045512,-455.17617593,0.00019812,2]
[367289345,1750731045521,-460.0,0.00019812,2]
[367289346,1750731045531,-306.61182352,0.00019812,2]
[367289347,1750731045539,-460.0,0.00019812,2]
[367289348,1750731045548,-460.0,0.00019812,2]
[367289349,1750731045558,-460.0,0.00019812,2]
[367289350,1750731045567,-460.0,0.00019812,2]
[367289351,1750731045577,-460.0,0.00019812,2]
[367289352,1750731045586,-511.30936554,0.00019812,2]
[367289353,1750731045595,-151.0,0.00019812,2]
[367289354,1750731045605,-414.64064037,0.00019812,2]
[367289355,1750731045614,-460.0,0.00019812,2]
[367289356,1750731045623,-460.0,0.00019812,2]
[367289357,1750731045632,-1212.39,0.00019812,2]
[367289358,1750731045641,-460.0,0.00019812,2]
[367289359,1750731045650,-460.0,0.00019812,2]
[367289360,1750731045660,-434.91613124,0.00019813,2]
[367289361,1750731045669,-460.0,0.00019813,2]
[367289362,1750731045678,-460.0,0.00019813,2]
[367289363,1750731045688,-2428.54,0.00019813,2]
[367289364,1750731045698,-785.39,0.00019813,2]
[367289365,1750731045707,-460.0,0.00019813,2]
[367289366,1750731045715,-460.0,0.00019813,2]
[367289367,1750731045725,-2214.76,0.00019813,2]
[367289368,1750731045734,-1359.49,0.00019813,2]
[367289369,1750731045743,-3474.07,0.00019813,2]
[367289370,1750731045752,-460.0,0.00019813,2]
[367289371,1750731045761,-948.16,0.00019813,2]
[367289372,1750731045771,-493.02,0.00019813,2]
[367289373,1750731045780,-460.0,0.00019813,2]
[367289374,1750731045790,-460.0,0.00019813,2]
[367289375,1750731045800,-460.0,0.0001982,2]
[367289376,1750731045809,-460.0,0.0001982,2]
[367289377,1750731045819,-460.0,0.0001982,2]
[367289378,1750731045828,-400.65396216,0.0001982,2]
[367289379,1750731045837,-193.89096638,0.0001982,2]
[367289380,1750731045847,-454.77482164,0.0001982,2]
[367289381,1750731045860,-460.0,0.0001982,2]
[367289382,1750731045872,-460.0,0.0001982,2]
[367289383,1750731045882,-322.00749428,0.0001982,2]
[367289384,1750731045892,-222.781259,0.0001982,2]
[367289385,1750731045907,-222.781259,0.0001982,2]
[367289386,1750731045917,-383.394682,0.0001982,2]
[367289387,1750731045926,-383.394682,0.0001982,2]
[367289388,1750731045940,-460.0,0.0001982,2]
[367289389,1750731045951,-1173.49014,0.00019863,2]
[367289390,1750731045960,-160.0,0.00019881,2]
[367289391,1750731045969,-160.0,0.00019881,2]
[367289392,1750731045980,-500.0,0.00019888,2]
[367289393,1750731045989,-500.0,0.00019888,2]
[367289394,1750731045998,-500.0,0.00019888,2]
[367289395,1750731046008,-160.0,0.00019894,2]
[367289396,1750731046017,-160.0,0.00019894,2]
[367289397,1750731046027,-230.20892031,0.00019894,2]
[367289398,1750731046037,-160.0,0.00019894,2]
[367289399,1750731046046,-361.545238,0.00019896,2]
[367289400,1750731046055,-361.545238,0.00019896,2]
[367289401,1750731046065,-151.0,0.00019896,2]
[367289402,1750731046074,-151.0,0.00019896,2]
[367289403,1750731046084,-158.57032,0.00019896,2]
[367289407,1750731046193,-151.0,0.00019896,2]
[367289408,1750731046204,-151.0,0.00019896,2]
[367289410,1750731046214,-151.0,0.00019896,2]
[367289411,1750731046224,-251.679561,0.00019896,2]
[367289412,1750731046233,-151.0,0.00019896,2]
[367289413,1750731046246,-151.0,0.00019896,2]
[367289414,1750731046262,-181.98759,0.00019896,2]
[367289415,1750731046271,-151.0,0.00019896,2]
[367289416,1750731046282,-213.66798275,0.00019896,2]
[367289417,1750731046292,-846.68469334,0.00019896,2]
[367289418,1750731046302,-836.80226758,0.00019896,2]
[367289419,1750731046311,-425.14181427,0.00019896,2]
[367289420,1750731046324,-160.0,0.00019896,2]
[367289421,1750731046334,-12556.00642039,0.00019896,2]
[367289422,1750731046344,-160.0,0.00019896,2]
[367289423,1750731046355,-500.0,0.00019898,2]
[367289424,1750731046365,-500.0,0.00019898,2]
[367289426,1750731046378,-500.0,0.00019898,2]
[367289428,1750731046388,-2322.09063537,0.00019917,2]
[367289430,1750731046397,-500.0,0.0001992,2]
[367289432,1750731046407,-500.0,0.0001992,2]
[367289434,1750731046416,-500.75295903,0.0001992,2]
[367289436,1750731046426,-500.0,0.0001993,2]
[367289438,1750731046435,-500.0,0.0001993,2]
[367289440,1750731046445,-320.751098,0.0001993,2]
[367289442,1750731046455,-320.751098,0.0001993,2]
[367289444,1750731046465,-1674.652596,0.0001993,2]
[367289446,1750731046474,-1674.652596,0.0001993,2]
[367289448,1750731046484,-564.65688795,0.00019931,2]
[367289449,1750731046493,-460.0,0.00019989,2]
[367289450,1750731046503,-460.0,0.00019989,2]
[367289452,1750731046512,-460.0,0.00019989,2]
[367289454,1750731046521,-460.0,0.00019989,2]
[367289455,1750731046530,-460.0,0.00019989,2]
[367289456,1750731046540,-460.0,0.00019989,2]
[367289458,1750731046549,-460.0,0.00019989,2]
[367289460,1750731046558,-460.0,0.00019989,2]
[367289462,1750731046567,-39067.0341503,0.0001999,2]
[367289464,1750731046577,-553.548904,0.0001999,2]
[367289466,1750731046585,-553.548904,0.0001999,2]
[367289467,1750731046594,-354.850897,0.0001999,2]
[367289468,1750731046604,-354.850897,0.0001999,2]
[367289470,1750731046613,-151.828159,0.0001999,2]
[367289472,1750731046622,-151.610754,0.0001999,2]
[367289474,1750731046631,-153.690437,0.0001999,2]
[367289476,1750731046641,-151.0,0.0001999,2]
[367289478,1750731046649,-152.005502,0.0001999,2]
[367289480,1750731046659,-151.0,0.0001999,2]
[367289482,1750731046668,-151.0,0.0001999,2]
[367289484,1750731046677,-151.0,0.0001999,2]
[367289485,1750731046686,-151.0,0.0001999,2]
[367289486,1750731046695,-151.0,0.0001999,2]
[367289487,1750731046705,-151.0,0.0001999,2]
[367289488,1750731046714,-151.0,0.0001999,2]
[367289490,1750731046723,-696.033548,0.0001999,2]
[367289492,1750731046732,-696.033548,0.0001999,2]
[367289493,1750731046741,-151.0,0.0001999,2]
[367289494,1750731046751,-151.0,0.0001999,2]
[367289495,1750731046762,-190.669257,0.0001999,2]
[367289496,1750731046774,-151.0,0.0001999,2]
[367289497,1750731046783,-151.0,0.0001999,2]
[367289498,1750731046792,-151.0,0.0001999,2]
[367289499,1750731046804,-151.0,0.0001999,2]
[367289500,1750731046814,-300.74048,0.0001999,2]
[367289501,1750731046823,-300.74048,0.0001999,2]
[367289502,1750731046833,-151.0,0.0001999,2]
[367289503,1750731046844,-151.0,0.0001999,2]
[367289504,1750731046858,-154.043297,0.0001999,2]
[367289505,1750731046868,-297.439563,0.0001999,2]
[367289506,1750731046877,-151.0,0.0001999,2]
[367289507,1750731046886,-151.0,0.0001999,2]
[367289508,1750731046896,-151.0,0.0001999,2]
[367289509,1750731046906,-151.0,0.0001999,2]
[367289510,1750731046915,-269.094194,0.0001999,2]
[367289511,1750731046924,-269.094194,0.0001999,2]
[367289512,1750731046935,-486.92554055,0.0001999,2]
[367289513,1750731046944,-2946.906804,0.0001999,2]
[367289514,1750731046955,-1081.001993,0.0001999,2]
[367289515,1750731046965,-2946.906804,0.0001999,2]
[367289516,1750731046975,-1081.001993,0.0001999,2]
[367289517,1750731046985,-156.865194,0.0001999,2]
[367289518,1750731046997,-156.865194,0.0001999,2]
[367289519,1750731047007,-151.0,0.0001999,2]
[367289520,1750731047017,-1000.0,0.0002,2]
[367289521,1750731047025,-791.03286244,0.0002,2]
[367289522,1750731047035,-151.0,0.0002,2]
[367289523,1750731047046,-2000.0,0.0002,3]
[367289524,1750731047056,-151.0,0.0002,4]
[367289525,1750731047065,-846.68469334,0.0002,3]
[367289526,1750731047074,-12556.00642039,0.0002,3]
[367289527,1750731047084,-160.0,0.0002,3]
[367289528,1750731047096,-153.0,0.00020037,2]
[367289529,1750731047106,-500.0,0.0002007,2]
[367289530,1750731047116,-172.37438419,0.00020073,2]
[367289531,1750731047124,-283.68446606,0.00020073,2]
[367289532,1750731047133,-243.6808343,0.00020073,2]
[367289533,1750731047142,-811.09,0.00020073,2]
[367289534,1750731047151,-460.0,0.00020073,2]
[367289535,1750731047160,-1659.52,0.00020073,2]
[367289536,1750731047169,-151.0,0.00020073,2]
[367289537,1750731047178,-1725.52,0.00020073,2]
[367289538,1750731047187,-3144.24,0.00020073,2]
[367289539,1750731047195,-151.0,0.00020073,2]
[367289540,1750731047205,-279.782636,0.00020073,2]
[367289541,1750731047214,-460.0,0.00020073,2]
[367289542,1750731047222,-1711.24,0.00020073,2]
[367289543,1750731047231,-1262.91,0.00020073,2]
[367289544,1750731047240,-292.48925412,0.00020073,2]
[367289545,1750731047248,-577.85,0.00020073,2]
[367289546,1750731047257,-870.34,0.00020073,2]
[367289547,1750731047266,-740.0,0.00020073,2]
[367289548,1750731047275,-2417.13,0.00020073,2]
[367289549,1750731047284,-151.0,0.00020073,2]
[367289550,1750731047293,-151.0,0.00020073,2]
[367289551,1750731047302,-567.91,0.00020073,2]
[367289552,1750731047310,-151.0,0.00020073,2]
[367289553,1750731047319,-460.0,0.00020073,2]
[367289554,1750731047327,-464.89,0.00020073,2]
[367289555,1750731047336,-1856.77,0.00020073,2]
[367289556,1750731047345,-514.01763929,0.00020084,2]
[367289557,1750731047353,-460.0,0.00020084,2]
[367289558,1750731047362,-460.0,0.00020084,2]
[367289559,1750731047371,-358.60950516,0.00020084,2]
[367289560,1750731047380,-609.62,0.00020084,2]
[367289561,1750731047388,-460.0,0.00020084,2]
[367289562,1750731047397,-550.22924793,0.00020084,2]
[367289563,1750731047406,-460.0,0.00020084,2]
[367289564,1750731047415,-469.25,0.00020084,2]